[Event "World Women Teams  Championship"]
[Site "Sitges, Spain"]
[Date "2021.09.28"]
[Round "3.4"]
[White "Antolak, Julia"]
[Black "Buksa, Nataliya"]
[Result "0-1"]
[TimeControl "40+10"]
[WhiteElo "2052"]
[BlackElo "2184"]

1. e4 {[%clk 00:45:17]} {[%emt 00:00:03]} c5 {[%clk 00:45:08]} {[%emt
00:00:13]} 2. Nf3 {[%clk 00:45:24]} {[%emt 00:00:02]} Nc6 {[%clk 00:45:17]}
{[%emt 00:00:02]} 3. d4 {[%clk 00:45:31]} {[%emt 00:00:03]} cxd4 {[%clk
00:45:25]} {[%emt 00:00:02]} 4. Nxd4 {[%clk 00:45:39]} {[%emt 00:00:01]} Nf6
{[%clk 00:45:34]} {[%emt 00:00:02]} 5. Nc3 {[%clk 00:45:48]} {[%emt 00:00:01]}
e5 {[%clk 00:45:43]} {[%emt 00:00:01]} 6. Ndb5 {[%clk 00:45:55]} {[%emt
00:00:03]} d6 {[%clk 00:45:52]} 7. a4 {[%clk 00:46:04]} a6 {[%clk 00:45:41]}
{[%emt 00:00:23]} 8. Na3 {[%clk 00:46:12]} Bg4 {[%clk 00:45:49]} {[%emt
00:00:01]} 9. Be2 {[%clk 00:45:23]} {[%emt 00:00:59]} Bxe2 {[%clk 00:45:56]}
{[%emt 00:00:04]} 10. Qxe2 {[%clk 00:45:32]} {[%emt 00:00:01]} d5 {[%clk
00:46:05]} {[%emt 00:00:02]} 11. exd5 {[%clk 00:44:32]} {[%emt 00:01:08]} Nxd5
{[%clk 00:46:13]} {[%emt 00:00:03]} 12. Nxd5 {[%clk 00:44:12]} {[%emt
00:00:30]} Qxd5 {[%clk 00:46:21]} {[%emt 00:00:02]} 13. O-O {[%clk 00:43:49]}
{[%emt 00:00:32]} Bc5 {[%clk 00:40:52]} {[%emt 00:05:39]} 14. Be3 {[%clk
00:38:57]} {[%emt 00:05:02]} Bxe3 {[%clk 00:38:52]} {[%emt 00:02:11]} 15. Qxe3
{[%clk 00:39:06]} O-O {[%clk 00:38:57]} {[%emt 00:00:05]} 16. Rfd1 {[%clk
00:37:38]} {[%emt 00:01:37]} Qe6 {[%clk 00:39:06]} 17. h3 {[%clk 00:32:13]}
{[%emt 00:05:36]} Rae8 {[%clk 00:31:49]} {[%emt 00:07:26]} 18. Qb6 {[%clk
00:29:07]} {[%emt 00:03:16]} Re7 {[%clk 00:31:23]} {[%emt 00:00:37]} 19. c3
{[%clk 00:28:48]} {[%emt 00:00:29]} e4 {[%clk 00:29:26]} {[%emt 00:02:06]} 20.
Qc5 {[%clk 00:25:24]} {[%emt 00:03:34]} Rd7 {[%clk 00:25:48]} {[%emt 00:03:48]}
21. Qc4 {[%clk 00:20:28]} {[%emt 00:05:07]} Qxc4 {[%clk 00:25:38]} {[%emt
00:00:20]} 22. Nxc4 {[%clk 00:20:37]} Rfd8 {[%clk 00:25:47]} {[%emt 00:00:01]}
23. Rxd7 {[%clk 00:20:24]} {[%emt 00:00:23]} Rxd7 {[%clk 00:25:56]} 24. Kf1
{[%clk 00:20:19]} {[%emt 00:00:15]} f5 {[%clk 00:24:26]} {[%emt 00:01:40]} 25.
g3 {[%clk 00:17:48]} {[%emt 00:02:41]} Kf7 {[%clk 00:22:33]} {[%emt 00:02:02]}
26. Ke2 {[%clk 00:16:28]} {[%emt 00:01:31]} Ke6 {[%clk 00:22:41]} {[%emt
00:00:02]} 27. h4 {[%clk 00:16:04]} {[%emt 00:00:33]} g6 {[%clk 00:19:56]}
{[%emt 00:02:55]} 28. Rd1 {[%clk 00:12:35]} {[%emt 00:03:40]} Rxd1 29. Kxd1
{[%clk 00:12:44]} h6 {[%clk 00:15:52]} {[%emt 00:00:01]} 30. b4 {[%clk
00:12:18]} {[%emt 00:00:37]} g5 {[%clk 00:14:42]} {[%emt 00:01:20]} 31. hxg5
{[%clk 00:12:27]} {[%emt 00:00:02]} hxg5 {[%clk 00:14:51]} 32. Ke2 {[%clk
00:11:08]} {[%emt 00:01:28]} Ne5 {[%clk 00:13:54]} {[%emt 00:01:07]} 33. Na5
{[%clk 00:09:05]} {[%emt 00:02:14]} b6 {[%clk 00:14:02]} {[%emt 00:00:02]} 34.
Nb3 {[%clk 00:09:14]} {[%emt 00:00:02]} Nc4 {[%clk 00:14:01]} {[%emt 00:00:10]}
35. Nd4+ {[%clk 00:07:28]} {[%emt 00:01:55]} Ke5 {[%clk 00:12:24]} {[%emt
00:01:47]} 36. Nc6+ {[%clk 00:07:37]} {[%emt 00:00:01]} Kd5 {[%clk 00:12:27]}
{[%emt 00:00:06]} 37. Nd4 {[%clk 00:05:57]} {[%emt 00:01:50]} f4 {[%clk
00:12:09]} {[%emt 00:00:28]} 38. gxf4 {[%clk 00:05:28]} {[%emt 00:00:39]} gxf4
{[%clk 00:12:18]} 39. Nb3 {[%clk 00:04:24]} {[%emt 00:01:15]} a5 {[%clk
00:06:36]} {[%emt 00:05:52]} 40. f3 {[%clk 00:01:52]} {[%emt 00:02:43]} Nb2
{[%clk 00:03:29]} {[%emt 00:03:15]} 41. bxa5 {[%clk 00:01:32]} {[%emt
00:00:30]} bxa5 {[%clk 00:02:36]} {[%emt 00:01:05]} 42. Nxa5 {[%clk 00:01:01]}
{[%emt 00:00:40]} e3 {[%clk 00:02:33]} {[%emt 00:00:13]} 43. Nb3 {[%clk
00:00:37]} {[%emt 00:00:34]} Nxa4 {[%clk 00:02:38]} {[%emt 00:00:04]} 44. Nc1
{[%clk 00:00:19]} {[%emt 00:00:28]} Kc4 {[%clk 00:01:53]} {[%emt 00:00:56]} 45.
Ke1 {[%clk 00:00:12]} {[%emt 00:00:17]} Nxc3 {[%clk 00:02:01]} {[%emt
00:00:03]} 46. Kf1 {[%clk 00:00:20]} {[%emt 00:00:02]} Kd4 {[%clk 00:01:15]}
{[%emt 00:00:56]} 47. Ke1 {[%clk 00:00:23]} {[%emt 00:00:07]} Kc4 {[%clk
00:00:17]} {[%emt 00:01:08]} 48. Kf1 {[%clk 00:00:28]} {[%emt 00:00:04]} Nd5
{[%clk 00:00:15]} {[%emt 00:00:12]} 49. Ke2 {[%clk 00:00:26]} {[%emt 00:00:12]}
Nb4 {[%clk 00:00:21]} {[%emt 00:00:05]} 50. Kd1 {[%clk 00:00:18]} {[%emt
00:00:17]} Kd4 {[%clk 00:00:16]} {[%emt 00:00:14]} 51. Ne2+ {[%clk 00:00:20]}
{[%emt 00:00:08]} Ke5 {[%clk 00:00:26]} {[%emt 00:00:02]} 52. Nc1 {[%clk
00:00:29]} Nc6 {[%clk 00:00:27]} {[%emt 00:00:09]} 53. Nd3+ {[%clk 00:00:19]}
{[%emt 00:00:21]} Kf5 {[%clk 00:00:36]} {[%emt 00:00:02]} 54. Ne1 {[%clk
00:00:11]} {[%emt 00:00:17]} Nd4 {[%clk 00:00:43]} {[%emt 00:00:02]} 55. Kc1
{[%clk 00:00:16]} {[%emt 00:00:07]} Kg5 {[%clk 00:00:29]} {[%emt 00:00:25]} 56.
Kb2 {[%clk 00:00:22]} {[%emt 00:00:04]} Nxf3 {[%clk 00:00:23]} {[%emt
00:00:13]} 57. Nxf3+ {[%clk 00:00:32]} {[%emt 00:00:02]} Kg4 {[%clk 00:00:33]}
58. Ne5+ {[%clk 00:00:31]} {[%emt 00:00:10]} Kg3 {[%clk 00:00:33]} {[%emt
00:00:10]} 59. Kc2 {[%clk 00:00:17]} {[%emt 00:00:25]} f3 {[%clk 00:00:32]}
{[%emt 00:00:09]} 60. Nc4 {[%clk 00:00:13]} {[%emt 00:00:15]} Kf2 {[%clk
00:00:18]} {[%emt 00:00:23]} 61. Ne5 {[%clk 00:00:13]} {[%emt 00:00:12]} e2
{[%clk 00:00:21]} {[%emt 00:00:06]} 62. Nd3 {[%clk 00:00:13]} {[%emt 00:00:11]}
Ke3 {[%clk 00:00:16]} {[%emt 00:00:15]} 63. Ne1 {[%clk 00:00:11]} {[%emt
00:00:11]} f2 {[%clk 00:00:25]} 0-1

[Event "World Women Teams  Championship"]
[Site "Sitges, Spain"]
[Date "2021.09.28"]
[Round "3.5"]
[White "Abdumalik, Zhansaya"]
[Black "Cori T., Deysi"]
[Result "1/2-1/2"]
[TimeControl "40+10"]
[WhiteElo "2444"]
[BlackElo "2340"]

1. e4 {[%clk 00:45:17]} {[%emt 00:00:03]} d5 {[%clk 00:45:18]} {[%emt
00:00:03]} 2. exd5 {[%clk 00:45:23]} {[%emt 00:00:04]} Qxd5 {[%clk 00:45:25]}
{[%emt 00:00:03]} 3. Nc3 {[%clk 00:45:26]} {[%emt 00:00:07]} Qd6 {[%clk
00:45:27]} {[%emt 00:00:08]} 4. d4 {[%clk 00:45:12]} {[%emt 00:00:24]} g6
{[%clk 00:45:26]} {[%emt 00:00:11]} 5. Nf3 {[%clk 00:42:36]} {[%emt 00:02:46]}
Bg7 {[%clk 00:44:59]} {[%emt 00:00:37]} 6. g3 {[%clk 00:42:14]} {[%emt
00:00:32]} Bg4 {[%clk 00:42:03]} {[%emt 00:03:05]} 7. h3 {[%clk 00:38:27]}
{[%emt 00:03:58]} Bxf3 {[%clk 00:38:31]} {[%emt 00:03:42]} 8. Qxf3 {[%clk
00:38:34]} {[%emt 00:00:02]} Nc6 {[%clk 00:38:39]} {[%emt 00:00:02]} 9. Nb5
{[%clk 00:38:10]} {[%emt 00:00:35]} Qd7 {[%clk 00:28:22]} {[%emt 00:10:27]} 10.
d5 {[%clk 00:33:03]} {[%emt 00:05:16]} Ne5 {[%clk 00:22:38]} {[%emt 00:05:55]}
11. Qb3 {[%clk 00:32:09]} {[%emt 00:01:03]} a6 {[%clk 00:19:09]} {[%emt
00:03:39]} 12. Na3 {[%clk 00:30:26]} {[%emt 00:01:54]} b5 {[%clk 00:04:18]}
{[%emt 00:15:01]} 13. f4 {[%clk 00:29:19]} {[%emt 00:01:17]} Nc4 {[%clk
00:04:12]} {[%emt 00:00:16]} 14. Nxc4 {[%clk 00:29:05]} {[%emt 00:00:23]} bxc4
{[%clk 00:04:19]} {[%emt 00:00:04]} 15. Qxc4 {[%clk 00:27:42]} {[%emt
00:01:33]} Nf6 {[%clk 00:04:27]} {[%emt 00:00:02]} 16. Bg2 {[%clk 00:27:40]}
{[%emt 00:00:12]} O-O {[%clk 00:04:31]} {[%emt 00:00:06]} 17. O-O {[%clk
00:26:33]} {[%emt 00:01:17]} Ne8 {[%clk 00:04:39]} {[%emt 00:00:02]} 18. c3
{[%clk 00:25:29]} {[%emt 00:01:14]} Nd6 {[%clk 00:04:37]} {[%emt 00:00:13]} 19.
Qe2 {[%clk 00:24:55]} {[%emt 00:00:42]} h5 {[%clk 00:04:24]} {[%emt 00:00:25]}
20. Kh2 {[%clk 00:24:29]} {[%emt 00:00:36]} Rfe8 {[%clk 00:04:22]} {[%emt
00:00:12]} 21. Be3 {[%clk 00:23:12]} {[%emt 00:01:26]} Rab8 {[%clk 00:04:06]}
{[%emt 00:00:26]} 22. Ba7 {[%clk 00:22:09]} {[%emt 00:01:13]} Rb5 {[%clk
00:03:47]} {[%emt 00:00:28]} 23. a4 {[%clk 00:21:59]} {[%emt 00:00:20]} Rb3
{[%clk 00:03:37]} {[%emt 00:00:20]} 24. Qc2 {[%clk 00:21:41]} {[%emt 00:00:29]}
Rb7 {[%clk 00:03:31]} {[%emt 00:00:16]} 25. Bc5 {[%clk 00:21:17]} {[%emt
00:00:32]} Rbb8 {[%clk 00:02:25]} {[%emt 00:01:17]} 26. Rae1 {[%clk 00:20:42]}
{[%emt 00:00:45]} Nf5 {[%clk 00:02:13]} {[%emt 00:00:23]} 27. b4 {[%clk
00:19:10]} {[%emt 00:01:41]} e5 {[%clk 00:01:39]} {[%emt 00:00:44]} 28. dxe6
{[%clk 00:18:05]} {[%emt 00:01:15]} Rxe6 {[%clk 00:01:47]} {[%emt 00:00:02]} 29.
Rxe6 {[%clk 00:14:59]} {[%emt 00:03:16]} Qxe6 {[%clk 00:01:56]} {[%emt
00:00:02]} 30. Qd3 {[%clk 00:14:55]} {[%emt 00:00:13]} Qb3 {[%clk 00:01:45]}
{[%emt 00:00:20]} 31. a5 {[%clk 00:12:15]} {[%emt 00:02:51]} Qxc3 {[%clk
00:01:29]} {[%emt 00:00:26]} 32. Qxc3 {[%clk 00:08:10]} {[%emt 00:04:15]} Bxc3
{[%clk 00:01:38]} {[%emt 00:00:01]} 33. Rb1 {[%clk 00:08:10]} {[%emt 00:00:09]}
Bd4 {[%clk 00:01:45]} {[%emt 00:00:04]} 34. Bxd4 {[%clk 00:06:14]} {[%emt
00:02:05]} Nxd4 {[%clk 00:01:54]} {[%emt 00:00:02]} 35. Be4 {[%clk 00:06:18]}
{[%emt 00:00:04]} Kf8 {[%clk 00:01:06]} {[%emt 00:00:59]} 36. Bd3 {[%clk
00:06:18]} {[%emt 00:00:10]} Nc6 {[%clk 00:01:08]} {[%emt 00:00:08]} 37. Bxa6
{[%clk 00:04:51]} {[%emt 00:01:36]} Nxa5 {[%clk 00:01:17]} {[%emt 00:00:01]} 38.
Bd3 {[%clk 00:04:39]} {[%emt 00:00:23]} Nc6 {[%clk 00:00:55]} {[%emt 00:00:30]}
39. b5 {[%clk 00:04:46]} {[%emt 00:00:03]} Nd4 {[%clk 00:01:04]} {[%emt
00:00:02]} 40. Kg2 {[%clk 00:04:25]} {[%emt 00:00:30]} Rb6 {[%clk 00:00:58]}
{[%emt 00:00:17]} 41. Rb4 {[%clk 00:03:55]} {[%emt 00:00:40]} Rd6 {[%clk
00:01:07]} 42. Kf2 {[%clk 00:03:41]} {[%emt 00:00:24]} Ke7 {[%clk 00:00:34]}
{[%emt 00:00:43]} 43. g4 {[%clk 00:03:27]} {[%emt 00:00:23]} hxg4 44. hxg4
{[%clk 00:03:36]} Ne6 {[%clk 00:00:40]} {[%emt 00:00:09]} 45. Ke3 {[%clk
00:03:28]} {[%emt 00:00:17]} Nc5 {[%clk 00:00:35]} {[%emt 00:00:15]} 46. Be2
{[%clk 00:02:49]} {[%emt 00:00:50]} Re6+ {[%clk 00:00:20]} {[%emt 00:00:26]} 47.
Kf3 {[%clk 00:02:57]} Rb6 {[%clk 00:00:23]} {[%emt 00:00:07]} 48. Rd4 {[%clk
00:02:41]} {[%emt 00:00:26]} Ne6 {[%clk 00:00:26]} {[%emt 00:00:07]} 49. Re4
{[%clk 00:02:19]} {[%emt 00:00:33]} Kd6 {[%clk 00:00:16]} {[%emt 00:00:20]} 50.
Bc4 {[%clk 00:02:00]} {[%emt 00:00:28]} Kc5 {[%clk 00:00:15]} {[%emt 00:00:12]}
51. Ke3 {[%clk 00:01:17]} {[%emt 00:00:52]} Rd6 {[%clk 00:00:24]} {[%emt
00:00:01]} 52. Bd3 {[%clk 00:00:58]} {[%emt 00:00:30]} Kb6 {[%clk 00:00:13]}
{[%emt 00:00:20]} 53. Be2 {[%clk 00:00:51]} {[%emt 00:00:17]} Nc5 {[%clk
00:00:12]} {[%emt 00:00:11]} 54. Re7 {[%clk 00:00:53]} {[%emt 00:00:08]} Re6+
{[%clk 00:00:18]} {[%emt 00:00:04]} 55. Rxe6+ {[%clk 00:01:02]} {[%emt
00:00:02]} Nxe6 {[%clk 00:00:27]} 56. Ke4 {[%clk 00:00:56]} {[%emt 00:00:17]}
f5+ {[%clk 00:00:26]} {[%emt 00:00:11]} 57. gxf5 {[%clk 00:01:04]} {[%emt
00:00:02]} gxf5+ {[%clk 00:00:35]} {[%emt 00:00:04]} 58. Ke5 {[%clk 00:01:09]}
{[%emt 00:00:08]} Nxf4 {[%clk 00:00:39]} 59. Kxf4 {[%clk 00:01:17]} {[%emt
00:00:07]} 1/2-1/2

[Event "World Women Teams  Championship"]
[Site "Sitges, Spain"]
[Date "2021.09.28"]
[Round "3.8"]
[White "Perez Rodriguez, Jennifer"]
[Black "Dauletova, Gulmira"]
[Result "0-1"]
[TimeControl "40+10"]
[WhiteElo "2150"]
[BlackElo "2184"]

1. e4 {[%clk 00:45:16]} {[%emt 00:00:03]} c5 {[%clk 00:45:18]} {[%emt
00:00:02]} 2. Nf3 {[%clk 00:45:20]} {[%emt 00:00:06]} e6 {[%clk 00:45:25]}
{[%emt 00:00:03]} 3. c3 {[%clk 00:45:25]} {[%emt 00:00:06]} Nf6 {[%clk
00:45:30]} {[%emt 00:00:04]} 4. e5 {[%clk 00:45:21]} {[%emt 00:00:14]} Nd5
{[%clk 00:45:37]} {[%emt 00:00:03]} 5. d4 {[%clk 00:45:22]} {[%emt 00:00:09]}
cxd4 {[%clk 00:45:43]} {[%emt 00:00:04]} 6. cxd4 {[%clk 00:45:31]} {[%emt
00:00:01]} d6 {[%clk 00:45:43]} {[%emt 00:00:10]} 7. a3 {[%clk 00:44:44]}
{[%emt 00:00:56]} Bd7 {[%clk 00:45:31]} {[%emt 00:00:22]} 8. Bd3 {[%clk
00:44:05]} {[%emt 00:00:50]} Bc6 {[%clk 00:45:14]} {[%emt 00:00:27]} 9. O-O
{[%clk 00:43:52]} {[%emt 00:00:24]} Nd7 {[%clk 00:44:39]} {[%emt 00:00:44]} 10.
b4 {[%clk 00:41:12]} {[%emt 00:02:51]} a6 {[%clk 00:44:18]} {[%emt 00:00:30]}
11. Bb2 {[%clk 00:40:29]} {[%emt 00:00:52]} Nf4 {[%clk 00:36:39]} {[%emt
00:07:50]} 12. Re1 {[%clk 00:35:08]} {[%emt 00:05:31]} Nb6 {[%clk 00:30:15]}
{[%emt 00:06:33]} 13. Bf1 {[%clk 00:29:26]} {[%emt 00:05:53]} Be7 {[%clk
00:25:24]} {[%emt 00:05:02]} 14. Nc3 {[%clk 00:25:23]} {[%emt 00:04:12]} O-O
{[%clk 00:25:27]} {[%emt 00:00:06]} 15. Bc1 {[%clk 00:18:54]} {[%emt 00:06:39]}
Nfd5 {[%clk 00:24:38]} {[%emt 00:00:59]} 16. Nxd5 {[%clk 00:18:48]} {[%emt
00:00:17]} Bxd5 {[%clk 00:23:36]} {[%emt 00:01:12]} 17. Be3 {[%clk 00:17:41]}
{[%emt 00:01:16]} Rc8 {[%clk 00:23:09]} {[%emt 00:00:37]} 18. Rc1 {[%clk
00:17:48]} {[%emt 00:00:03]} Rxc1 {[%clk 00:16:49]} {[%emt 00:06:30]} 19. Qxc1
{[%clk 00:17:45]} {[%emt 00:00:13]} Qd7 {[%clk 00:16:23]} {[%emt 00:00:36]} 20.
Bf4 {[%clk 00:13:58]} {[%emt 00:03:56]} Rc8 {[%clk 00:16:21]} {[%emt 00:00:13]}
21. Qe3 {[%clk 00:14:02]} {[%emt 00:00:06]} Nc4 {[%clk 00:14:12]} {[%emt
00:02:19]} 22. Bxc4 {[%clk 00:14:09]} {[%emt 00:00:03]} Rxc4 {[%clk 00:14:20]}
{[%emt 00:00:02]} 23. Nd2 {[%clk 00:12:37]} {[%emt 00:01:42]} Rc2 {[%clk
00:11:28]} {[%emt 00:03:02]} 24. Ne4 {[%clk 00:09:44]} {[%emt 00:03:02]} dxe5
{[%clk 00:11:27]} {[%emt 00:00:12]} 25. dxe5 {[%clk 00:09:22]} {[%emt
00:00:32]} Qc6 {[%clk 00:10:42]} {[%emt 00:00:54]} 26. f3 {[%clk 00:08:04]}
{[%emt 00:01:28]} Bd8 {[%clk 00:09:16]} {[%emt 00:01:36]} 27. Qd3 {[%clk
00:04:42]} {[%emt 00:03:31]} Bb6+ {[%clk 00:09:22]} {[%emt 00:00:03]} 28. Be3
{[%clk 00:03:47]} {[%emt 00:01:07]} Bxe4 {[%clk 00:05:45]} {[%emt 00:03:46]} 29.
fxe4 {[%clk 00:02:07]} {[%emt 00:01:49]} Rc3 {[%clk 00:03:17]} {[%emt
00:02:39]} 30. Qd2 {[%clk 00:02:16]} Rxa3 {[%clk 00:00:48]} {[%emt 00:02:39]}
31. Bxb6 {[%clk 00:02:22]} {[%emt 00:00:04]} Qxb6+ {[%emt 00:00:02]} 32. Kh1
{[%clk 00:02:31]} h6 {[%clk 00:00:52]} {[%emt 00:00:16]} 33. Rf1 {[%clk
00:00:59]} {[%emt 00:01:41]} Qc7 {[%clk 00:00:57]} {[%emt 00:00:05]} 34. Qd4
{[%clk 00:00:27]} {[%emt 00:00:42]} Rc3 {[%clk 00:00:50]} {[%emt 00:00:16]} 35.
h3 {[%clk 00:00:18]} {[%emt 00:00:20]} Rc4 {[%clk 00:00:51]} {[%emt 00:00:09]}
36. Qd6 {[%clk 00:00:19]} {[%emt 00:00:09]} Qc8 {[%clk 00:00:24]} {[%emt
00:00:36]} 37. Qe7 {[%clk 00:00:20]} {[%emt 00:00:11]} Rc7 {[%clk 00:00:29]}
{[%emt 00:00:03]} 38. Qd6 {[%clk 00:00:26]} {[%emt 00:00:03]} Rd7 {[%clk
00:00:32]} {[%emt 00:00:07]} 39. Qb6 {[%clk 00:00:16]} {[%emt 00:00:21]} Qc4
{[%clk 00:00:35]} {[%emt 00:00:08]} 40. Re1 {[%clk 00:00:15]} {[%emt 00:00:10]}
Qc3 {[%clk 00:00:39]} {[%emt 00:00:06]} 41. Re3 {[%clk 00:00:16]} {[%emt
00:00:10]} Qxe5 {[%clk 00:00:46]} {[%emt 00:00:03]} 42. Re2 {[%clk 00:00:14]}
{[%emt 00:00:11]} Rd1+ {[%clk 00:00:53]} {[%emt 00:00:03]} 0-1

[Event "World Women Teams  Championship"]
[Site "Sitges, Spain"]
[Date "2021.09.28"]
[Round "3.9"]
[White "Paehtz, Elisabeth"]
[Black "Dzagnidze, Nana"]
[Result "0-1"]
[TimeControl "40+10"]
[WhiteElo "2371"]
[BlackElo "2455"]

1. d4 Nf6 2. c4 e6 3. g3 d5 4. Bg2 Nbd7 5. Nf3 Bb4+ 6. Nbd2 O-O 7. O-O Bd6 8.
Qc2 c5 9. e4 cxd4 10. Nxd4 Qb6 11. Nb5 d4 12. Nb3 e5 13. Bd2 Bb8 14. Bb4 Re8 15.
a4 a6 16. c5 Qe6 17. Na3 Bc7 18. Rac1 Nb8 19. Ba5 Qe7 20. Bxc7 Qxc7 21. Nc4 Nc6
22. Nb6 Rb8 23. Nd2 Be6 24. Nf3 Rbd8 25. Qd3 Nb4 26. Qd2 Na2 27. Ng5 Nxc1 28.
Rxc1 d3 29. Nxe6 {[%clk 00:45:10]} fxe6 {[%clk 00:45:10]} 0-1

[Event "World Women Teams  Championship"]
[Site "Sitges, Spain"]
[Date "2021.09.28"]
[Round "3.10"]
[White "Batsiashvili, Nino"]
[Black "Heinemann, Josefine"]
[Result "1-0"]
[TimeControl "40+10"]
[WhiteElo "2371"]
[BlackElo "2177"]

1. d4 {[%clk 00:45:17]} Nf6 {[%clk 00:45:18]} 2. c4 {[%clk 00:45:17]} e6 {[%clk
00:45:18]} 3. Nc3 {[%clk 00:45:17]} Bb4 {[%clk 00:45:18]} 4. e3 {[%clk
00:45:17]} O-O {[%clk 00:45:18]} 5. Bd2 {[%clk 00:45:17]} d5 {[%clk 00:45:18]}
6. Nf3 {[%clk 00:45:17]} b6 {[%clk 00:45:18]} 7. cxd5 {[%clk 00:45:17]} exd5
{[%clk 00:45:18]} {[%emt 00:20:51]} 8. Bd3 {[%clk 00:45:49]} Bd6 {[%clk
00:45:18]} 9. Ne5 {[%clk 00:45:49]} Bb7 {[%clk 00:45:18]} 10. f4 {[%clk
00:45:49]} c5 {[%clk 00:45:18]} 11. Qf3 {[%clk 00:45:49]} Nc6 {[%clk 00:45:18]}
12. Qh3 {[%clk 00:45:49]} g6 {[%clk 00:45:18]} 13. Ne2 {[%clk 00:45:49]} Ne4
{[%clk 00:45:18]} 14. Bc3 {[%clk 00:45:49]} Nxc3 {[%clk 00:45:18]} 15. bxc3
{[%clk 00:45:49]} cxd4 16. exd4 Re8 {[%clk 00:31:14]} {[%emt 00:00:01]} 17. O-O
{[%clk 00:23:48]} Qe7 {[%clk 00:26:23]} {[%emt 00:05:15]} 18. Rf3 {[%clk
00:23:23]} Rac8 {[%clk 00:23:38]} {[%emt 00:03:29]} 19. Raf1 {[%clk 00:20:02]}
{[%emt 00:04:00]} Qc7 20. Ng3 {[%clk 00:19:13]} {[%emt 00:06:41]} Bf8 21. Nh5
{[%clk 00:16:51]} {[%emt 00:02:57]} Bg7 22. Rg3 {[%emt 00:03:27]} Nxe5 {[%clk
00:14:35]} {[%emt 00:00:11]} 23. fxe5 {[%clk 00:16:59]} Qxc3 {[%clk 00:13:10]}
{[%emt 00:01:36]} 24. Nxg7 {[%clk 00:16:28]} Qxd4+ {[%clk 00:13:14]} {[%emt
00:00:47]} 25. Kh1 Rxe5 26. Nf5 {[%clk 00:15:48]} {[%emt 00:01:42]} Qb2 {[%clk
00:10:02]} 27. Nh6+ {[%clk 00:15:39]} {[%emt 00:01:17]} Kg7 {[%clk 00:10:11]}
28. Rxf7+ {[%emt 00:00:24]} Kh8 {[%emt 00:00:14]} 29. Rxh7+ {[%clk 00:15:23]}
{[%emt 00:00:06]} Kxh7 {[%clk 00:10:18]} {[%emt 00:00:02]} 30. Nf5+ {[%emt
00:00:55]} 1-0

[Event "World Women Teams  Championship"]
[Site "Sitges, Spain"]
[Date "2021.09.28"]
[Round "3.11"]
[White "Schneider, Jana"]
[Black "Arabidze, Meri"]
[Result "1/2-1/2"]
[TimeControl "40+10"]
[WhiteElo "2138"]
[BlackElo "2434"]

1. d4 {[%clk 00:45:17]} {[%emt 00:00:03]} Nf6 {[%clk 00:45:18]} {[%emt
00:00:03]} 2. c4 {[%clk 00:45:23]} {[%emt 00:00:03]} g6 {[%clk 00:45:26]}
{[%emt 00:00:02]} 3. g3 {[%clk 00:45:24]} {[%emt 00:00:10]} Bg7 {[%clk
00:45:33]} {[%emt 00:00:03]} 4. Bg2 {[%clk 00:45:32]} {[%emt 00:00:02]} d6
{[%clk 00:45:33]} {[%emt 00:00:10]} 5. Nf3 {[%clk 00:45:11]} {[%emt 00:00:31]}
O-O {[%clk 00:45:39]} {[%emt 00:00:04]} 6. Nc3 {[%clk 00:45:17]} {[%emt
00:00:03]} c6 {[%clk 00:45:47]} {[%emt 00:00:03]} 7. e4 {[%clk 00:45:25]}
{[%emt 00:00:03]} e5 {[%clk 00:42:35]} {[%emt 00:03:21]} 8. O-O {[%clk
00:45:06]} {[%emt 00:00:29]} Nbd7 {[%clk 00:41:59]} {[%emt 00:00:47]} 9. h3
{[%clk 00:44:34]} {[%emt 00:00:42]} Re8 {[%clk 00:38:39]} {[%emt 00:03:30]} 10.
Re1 {[%clk 00:44:11]} {[%emt 00:00:33]} a5 {[%clk 00:37:56]} {[%emt 00:00:53]}
11. b3 {[%clk 00:42:13]} {[%emt 00:02:08]} exd4 {[%clk 00:36:01]} {[%emt
00:02:05]} 12. Nxd4 {[%clk 00:42:20]} {[%emt 00:00:02]} Nc5 {[%clk 00:36:06]}
{[%emt 00:00:05]} 13. Bb2 {[%clk 00:41:35]} {[%emt 00:00:55]} a4 {[%clk
00:33:49]} {[%emt 00:02:28]} 14. Rb1 {[%clk 00:41:26]} {[%emt 00:00:19]} axb3
{[%clk 00:32:56]} {[%emt 00:01:03]} 15. axb3 {[%clk 00:41:33]} {[%emt
00:00:03]} Qb6 {[%clk 00:30:23]} {[%emt 00:02:43]} 16. Ba1 {[%clk 00:38:46]}
{[%emt 00:02:57]} Nfd7 {[%clk 00:23:17]} {[%emt 00:07:16]} 17. Nde2 {[%clk
00:31:57]} {[%emt 00:06:58]} Qb4 {[%clk 00:21:47]} {[%emt 00:01:40]} 18. Qc2
{[%clk 00:31:12]} {[%emt 00:00:55]} Ra3 {[%clk 00:18:16]} {[%emt 00:03:41]} 19.
Na2 {[%clk 00:30:02]} {[%emt 00:01:21]} Qa5 {[%clk 00:17:34]} {[%emt 00:00:52]}
20. Bxg7 {[%clk 00:29:59]} {[%emt 00:00:12]} Rxa2 {[%clk 00:17:08]} {[%emt
00:00:37]} 21. Bb2 {[%clk 00:29:52]} {[%emt 00:00:16]} Rxb2 {[%clk 00:16:21]}
{[%emt 00:00:57]} 22. Qxb2 {[%clk 00:29:51]} {[%emt 00:00:12]} Nd3 {[%clk
00:16:28]} {[%emt 00:00:03]} 23. Qc3 {[%clk 00:27:30]} {[%emt 00:02:31]} Qxc3
{[%clk 00:16:31]} {[%emt 00:00:06]} 24. Nxc3 {[%clk 00:27:38]} {[%emt
00:00:02]} Nxe1 {[%clk 00:16:39]} {[%emt 00:00:03]} 25. Rxe1 {[%clk 00:27:46]}
{[%emt 00:00:01]} Nc5 {[%clk 00:16:32]} {[%emt 00:00:17]} 26. Rb1 {[%clk
00:23:02]} {[%emt 00:04:54]} f5 {[%clk 00:16:04]} {[%emt 00:00:39]} 27. Rd1
{[%clk 00:22:01]} {[%emt 00:01:10]} Nxb3 {[%clk 00:15:11]} {[%emt 00:01:03]} 28.
Rxd6 {[%clk 00:22:02]} {[%emt 00:00:08]} Be6 {[%clk 00:13:50]} {[%emt
00:01:32]} 29. exf5 {[%clk 00:21:45]} {[%emt 00:00:28]} Bxf5 {[%clk 00:13:48]}
{[%emt 00:00:12]} 30. g4 {[%clk 00:20:52]} {[%emt 00:01:02]} Re1+ {[%clk
00:12:52]} {[%emt 00:01:06]} 31. Kh2 {[%clk 00:20:59]} {[%emt 00:00:03]} Be6
{[%clk 00:12:41]} {[%emt 00:00:22]} 32. Ne4 {[%clk 00:20:33]} {[%emt 00:00:35]}
Kf7 {[%clk 00:08:39]} {[%emt 00:04:11]} 33. Rd8 {[%clk 00:18:02]} {[%emt
00:02:42]} Ke7 {[%clk 00:06:21]} {[%emt 00:02:29]} 34. Rh8 {[%clk 00:17:32]}
{[%emt 00:00:40]} Bxc4 {[%clk 00:04:28]} {[%emt 00:02:03]} 35. Rxh7+ {[%clk
00:17:32]} {[%emt 00:00:11]} Ke6 {[%clk 00:04:30]} {[%emt 00:00:08]} 36. Rxb7
{[%clk 00:16:13]} {[%emt 00:01:29]} Ke5 {[%clk 00:04:30]} {[%emt 00:00:10]} 37.
Ng5 {[%clk 00:15:20]} {[%emt 00:01:02]} Kf4 {[%clk 00:04:19]} {[%emt 00:00:21]}
38. Nf3 {[%clk 00:13:14]} {[%emt 00:02:16]} Bd5 {[%clk 00:04:11]} {[%emt
00:00:18]} 39. Nxe1 {[%clk 00:13:17]} {[%emt 00:00:07]} 1/2-1/2